bitfinex/quotes_BTCUSD_20241011
["timestamp","ask_amount","ask_price","bid_price","bid_amount"]
[1728667327182,0.173119,62308.0,62307.0,0.77027424]
[1728667327403,0.173119,62308.0,62307.0,0.76527424]
[1728667327603,0.173119,62308.0,62307.0,0.76927424]
[1728667327807,0.173119,62308.0,62307.0,0.91164691]
[1728667328204,0.173119,62308.0,62307.0,0.91464691]
[1728667328411,0.173119,62308.0,62307.0,0.77227424]
[1728667328624,0.173119,62308.0,62307.0,0.76727424]
[1728667328830,0.173119,62308.0,62307.0,0.76827424]
[1728667329491,0.173119,62308.0,62307.0,0.76727424]
[1728667329802,0.173119,62308.0,62307.0,0.77027424]
[1728667330917,0.091019,62308.0,62307.0,0.77027424]
[1728667331137,0.091019,62308.0,62307.0,0.64641163]
[1728667331368,0.000819,62308.0,62307.0,0.88913685]
[1728667331620,0.1729,62318.0,62317.0,0.160469]
[1728667331833,0.0754,62323.0,62322.0,0.160456]
[1728667332055,0.0827,62328.0,62323.0,0.27731661]
[1728667332272,0.1727,62328.0,62323.0,0.48865896]
[1728667332487,0.1727,62328.0,62323.0,0.65878102]
[1728667332938,0.1727,62328.0,62323.0,0.87169122]
[1728667333340,0.1727,62328.0,62323.0,0.6807863]
[1728667333677,0.1727,62328.0,62323.0,0.6827863]
[1728667333881,0.1727,62328.0,62323.0,0.6847863]
[1728667335239,0.1727,62328.0,62323.0,0.56792369]
[1728667335472,0.178519,62324.0,62323.0,0.56792369]
[1728667335734,0.178519,62324.0,62323.0,0.24751888]
[1728667335963,0.19551817,62324.0,62323.0,0.08629487]
[1728667336207,0.21051562,62324.0,62323.0,0.08629487]
[1728667336435,0.19551817,62324.0,62323.0,0.08629487]
[1728667336891,0.19551817,62324.0,62323.0,0.08429487]
[1728667337119,0.195516,62324.0,62323.0,0.08229487]
[1728667337370,0.195516,62324.0,62323.0,0.08629487]
[1728667337638,0.21051024,62324.0,62323.0,0.08629487]
[1728667337882,0.195516,62324.0,62323.0,0.004]
[1728667338136,0.195516,62324.0,62323.0,0.01549017]
[1728667338374,0.195516,62324.0,62323.0,0.004]
[1728667338375,0.180519,62324.0,62323.0,0.004]
[1728667339343,0.180519,62324.0,62323.0,0.007]
[1728667341152,0.23451458,62324.0,62323.0,0.007]
[1728667342049,0.23251779,62324.0,62323.0,0.007]
[1728667342312,0.21051654,62324.0,62323.0,0.01849017]
[1728667342527,0.21051654,62324.0,62323.0,0.007]
[1728667342744,0.21051654,62324.0,62323.0,0.01619214]
[1728667342745,0.23452245,62324.0,62323.0,0.01619214]
[1728667342970,0.23452245,62324.0,62323.0,0.004]
[1728667343182,0.23452245,62324.0,62323.0,0.01149017]
[1728667343387,0.23452245,62324.0,62320.0,0.160461]
[1728667343388,0.15472245,62324.0,62320.0,0.160461]
[1728667343598,0.182319,62324.0,62323.0,0.01149017]
[1728667343809,0.23633362,62324.0,62320.0,0.26260083]
[1728667344022,0.0816,62322.0,62320.0,0.26260083]
[1728667344257,0.01500406,62321.0,62320.0,0.10213983]
[1728667344447,0.01500406,62321.0,62319.0,0.160463]
[1728667344650,0.01500406,62320.0,62319.0,0.160463]
[1728667345960,0.01700406,62320.0,62319.0,0.160463]
[1728667346397,0.002,62320.0,62319.0,0.160463]
[1728667346629,0.0150052,62320.0,62319.0,0.160463]
[1728667350166,0.0170052,62320.0,62319.0,0.160463]
[1728667350376,0.1101052,62320.0,62319.0,0.160463]
[1728667350793,0.002,62316.0,62315.0,0.56155812]
[1728667351010,0.002,62319.0,62318.0,0.160467]
[1728667351213,0.01700625,62319.0,62318.0,0.32169101]
[1728667351659,0.01700625,62319.0,62318.0,0.34745581]
[1728667351862,0.01500625,62319.0,62318.0,0.34745581]
[1728667352297,0.01500625,62319.0,62318.0,0.32169101]
[1728667352730,0.0931,62320.0,62319.0,0.160464]
[1728667352945,0.12311196,62320.0,62319.0,0.160464]
[1728667353176,0.002,62319.0,62318.0,0.16122401]
[1728667353378,0.03001196,62319.0,62318.0,0.32168901]
[1728667356044,0.01500598,62319.0,62318.0,0.32168901]
[1728667356381,0.01500433,62319.0,62318.0,0.32168901]
[1728667356586,0.03000819,62319.0,62318.0,0.32168901]
[1728667358574,0.01500433,62319.0,62318.0,0.32168901]
[1728667359199,0.01500394,62319.0,62318.0,0.32168901]
[1728667362401,0.03001259,62319.0,62318.0,0.32168901]
[1728667363021,0.01500394,62319.0,62318.0,0.32168901]
[1728667363492,0.03001426,62319.0,62318.0,0.32168901]
[1728667365436,0.05404286,62319.0,62318.0,0.32168901]
[1728667365673,0.03001426,62319.0,62318.0,0.32168901]
[1728667365893,0.03001426,62319.0,62318.0,0.45379495]
[1728667367396,0.05404601,62319.0,62318.0,0.45379495]
[1728667368143,0.05404601,62319.0,62318.0,0.46532412]
[1728667369308,0.05404601,62319.0,62318.0,0.47032412]
[1728667370043,0.02963287,62319.0,62318.0,0.47132412]
[1728667370297,0.05366107,62319.0,62318.0,0.47132412]
[1728667370508,0.05366107,62319.0,62318.0,0.47032412]
[1728667370723,0.05366107,62319.0,62318.0,0.47432412]
[1728667372021,0.05448107,62319.0,62318.0,0.47432412]
[1728667372500,0.05648107,62319.0,62318.0,0.47432412]
[1728667372712,0.05448107,62319.0,62318.0,0.47432412]
[1728667374044,0.03986215,62319.0,62318.0,0.47432412]
[1728667375407,0.03986215,62319.0,62318.0,0.46932412]
[1728667375791,0.03986215,62319.0,62318.0,0.46532412]
[1728667377564,0.01583032,62319.0,62318.0,0.46532412]
[1728667377778,0.0248552,62319.0,62318.0,0.46532412]
[1728667377990,0.0398772,62319.0,62318.0,0.46532412]
[1728667378464,0.0398772,62319.0,62318.0,0.51338678]
[1728667378687,0.00082,62319.0,62318.0,0.5635203]
[1728667378887,0.00082,62319.0,62318.0,0.73314815]
[1728667379088,0.00082,62319.0,62318.0,0.66104807]
[1728667379294,0.00082,62319.0,62318.0,0.73321609]
[1728667379499,0.00082,62319.0,62318.0,0.73722928]
[1728667379698,0.00082,62319.0,62318.0,0.73522928]
[1728667379827,0.00082,62319.0,62318.0,0.66311907]
[1728667380309,0.00082,62319.0,62318.0,0.75726204]
[1728667381596,0.00082,62319.0,62318.0,0.78127573]
[1728667382012,0.00082,62319.0,62318.0,0.66111907]
[1728667382211,0.00082,62319.0,62318.0,0.75730317]
[1728667382418,0.00082,62319.0,62318.0,0.70716965]
[1728667382842,0.00082,62319.0,62318.0,0.75725476]
[1728667383250,0.00082,62319.0,62318.0,0.70716965]
[1728667383685,0.00082,62319.0,62318.0,0.61098555]
[1728667384371,0.00082,62319.0,62318.0,0.70713965]
[1728667386427,0.00082,62319.0,62318.0,0.7108384]
[1728667387279,0.00082,62319.0,62318.0,0.61469875]
[1728667388481,0.00082,62319.0,62318.0,0.68678079]
[1728667391299,0.00082,62319.0,62318.0,0.53740616]
[1728667391529,0.00082,62319.0,62318.0,0.53738307]
[1728667393237,0.00082,62319.0,62318.0,0.46532412]
[1728667397246,0.00082,62319.0,62318.0,0.46696412]
[1728667397526,0.00082,62319.0,62318.0,0.54356412]
[1728667397757,0.000819,62324.0,62318.0,0.54356412]
[1728667397758,0.000819,62324.0,62323.0,0.47080254]
[1728667397968,0.000819,62324.0,62323.0,0.95134279]
[1728667398184,0.000819,62324.0,62323.0,0.96283226]
[1728667398396,0.000819,62324.0,62323.0,0.84277616]
[1728667398629,0.000819,62324.0,62323.0,1.06283226]
[1728667398845,0.000819,62324.0,62323.0,0.62901174]
[1728667399067,0.000819,62324.0,62323.0,0.67167032]
[1728667399288,0.000819,62324.0,62323.0,0.5996524]
[1728667399505,0.169419,62324.0,62323.0,0.38477813]
[1728667400364,0.169419,62324.0,62323.0,0.38277813]
[1728667400617,0.169419,62324.0,62323.0,0.57070691]
[1728667400826,0.169419,62324.0,62323.0,0.56770691]
[1728667401228,0.169419,62324.0,62323.0,0.57670691]
[1728667401434,0.169419,62324.0,62323.0,0.56770691]
[1728667401693,0.169419,62324.0,62323.0,0.57570691]
[1728667402124,0.169419,62324.0,62323.0,0.56770691]
[1728667405747,0.169419,62324.0,62323.0,0.56970691]
[1728667406201,0.169419,62324.0,62323.0,0.56770691]
[1728667406619,0.169419,62324.0,62323.0,0.37977813]
[1728667407925,0.169419,62324.0,62323.0,0.38177813]
[1728667408352,0.169419,62324.0,62323.0,0.37977813]
[1728667408353,0.18443661,62324.0,62323.0,0.37977813]
[1728667408559,0.18443661,62324.0,62323.0,0.38714676]
[1728667408980,0.18443647,62324.0,62323.0,9.38714676]
[1728667410249,0.18443614,62324.0,62323.0,9.38714676]
[1728667412681,0.18443626,62324.0,62323.0,9.38714676]
[1728667412893,0.169419,62324.0,62323.0,9.38714676]
[1728667413109,0.18443628,62324.0,62323.0,9.38714676]
[1728667416162,0.169419,62324.0,62323.0,9.38714676]
[1728667416385,0.18443648,62324.0,62323.0,9.38714676]
[1728667418693,0.18443648,62324.0,62323.0,9.33316748]
[1728667418904,0.2234779,62324.0,62323.0,9.01148947]
[1728667419298,0.2254779,62324.0,62323.0,9.01148947]
[1728667419501,0.2014485,62324.0,62323.0,9.01148947]
[1728667419720,0.22346965,62324.0,62323.0,9.17194347]
[1728667420929,0.22346965,62324.0,62323.0,9.17894347]
[1728667421158,0.22346965,62324.0,62323.0,9.01848947]
[1728667421336,0.22346965,62324.0,62323.0,9.17894347]
[1728667421560,0.22346965,62324.0,62323.0,9.17394347]
[1728667421753,0.22346965,62324.0,62323.0,9.45217517]
[1728667421959,0.22346965,62324.0,62323.0,9.45317517]
[1728667422162,0.19944444,62324.0,62323.0,9.61439918]
[1728667422329,0.18442816,62324.0,62323.0,9.61439918]
[1728667424649,0.10622816,62324.0,62323.0,9.61439918]
[1728667426630,0.10622744,62324.0,62323.0,9.61439918]
[1728667429179,0.1212475,62324.0,62323.0,9.61439918]
[1728667430039,0.01582744,62324.0,62323.0,9.61439918]
[1728667434412,0.01582744,62324.0,62323.0,9.73126117]
[1728667434624,0.000819,62324.0,62323.0,9.73126117]
[1728667435060,0.01583944,62324.0,62323.0,9.73126117]
[1728667435272,0.000819,62324.0,62323.0,9.73126117]
[1728667435480,0.000819,62324.0,62323.0,9.80237279]
[1728667435702,0.005819,62324.0,62323.0,9.6855108]
[1728667436156,0.005819,62324.0,62323.0,9.61339918]
[1728667436375,0.005819,62324.0,62323.0,10.13655799]
[1728667436614,0.005819,62324.0,62323.0,10.06444637]
[1728667436836,0.000819,62324.0,62323.0,10.06444637]
[1728667437051,0.000819,62324.0,62323.0,10.21313927]
[1728667437261,0.000819,62324.0,62323.0,10.24115684]
[1728667437456,0.000819,62324.0,62323.0,10.24113599]
[1728667437665,0.000819,62324.0,62323.0,10.23913599]
[1728667438091,0.000819,62324.0,62323.0,10.24413599]
[1728667438321,0.000819,62324.0,62323.0,10.24511288]
[1728667438533,0.000819,62324.0,62323.0,10.24811288]
[1728667438976,0.0029458,62335.0,62334.0,0.160426]
[1728667439201,0.0029458,62335.0,62334.0,0.57141659]
[1728667439418,0.0029458,62335.0,62334.0,0.68482271]
[1728667439633,0.0029458,62335.0,62334.0,0.83668253]
[1728667439879,0.0029458,62335.0,62334.0,0.88673428]
[1728667440106,0.0029458,62335.0,62334.0,0.97503428]
[1728667440336,0.000819,62351.0,62339.0,0.260413]
[1728667440569,0.000819,62351.0,62339.0,1.26985736]
[1728667440790,0.000819,62351.0,62339.0,1.93333063]
[1728667441278,0.000819,62351.0,62339.0,1.73293163]
[1728667441490,0.000819,62351.0,62339.0,1.64195763]
[1728667441711,0.000819,62351.0,62339.0,1.25700063]
[1728667441929,0.0952,62347.0,62339.0,1.30769172]
[1728667442144,0.0952,62347.0,62339.0,1.13764888]
[1728667442589,0.0952,62347.0,62339.0,1.20814896]
[1728667442811,0.0952,62347.0,62339.0,1.04775955]
[1728667443271,0.0952,62347.0,62339.0,0.99978906]
[1728667443714,0.0952,62347.0,62339.0,0.98578906]
[1728667443923,0.0952,62347.0,62339.0,1.06175955]
[1728667444382,0.0952,62347.0,62339.0,0.99978906]
[1728667444598,0.0952,62347.0,62339.0,0.97178906]
[1728667444820,0.0952,62347.0,62339.0,1.02875955]
[1728667445110,0.000819,62351.0,62339.0,1.45114009]
[1728667445355,0.000819,62351.0,62339.0,1.45110723]
[1728667445644,0.000819,62351.0,62350.0,0.160384]
[1728667445901,0.000819,62351.0,62350.0,0.69703939]
[1728667446140,0.000819,62351.0,62350.0,0.52047926]
[1728667446938,0.002819,62351.0,62350.0,0.52047926]
[1728667447449,0.005819,62351.0,62350.0,0.52047926]
[1728667447697,0.005819,62351.0,62350.0,0.66876239]
[1728667449204,0.005819,62351.0,62350.0,0.67597029]
[1728667450948,0.002819,62351.0,62350.0,0.67597029]
[1728667451198,0.002819,62351.0,62350.0,0.67897029]
[1728667451677,0.000819,62351.0,62350.0,0.67897029]
[1728667453122,0.000819,62351.0,62350.0,0.68297029]
[1728667455802,0.000819,62351.0,62350.0,1.2342981]
[1728667455970,0.000819,62351.0,62350.0,1.04658241]
[1728667456147,0.000819,62351.0,62350.0,0.80597029]
[1728667456780,0.000819,62351.0,62350.0,0.99868598]
[1728667458809,0.03787926,62355.0,62354.0,0.283374]
[1728667458993,0.01301378,62355.0,62354.0,1.42285957]
[1728667459223,0.01301378,62355.0,62354.0,1.43396162]
[1728667459426,0.000819,62357.0,62356.0,0.370969]
[1728667459653,0.000819,62357.0,62356.0,1.47617501]
[1728667459830,0.000819,62357.0,62356.0,1.64862873]
[1728667460076,0.000819,62357.0,62356.0,1.51506473]
[1728667460693,0.000819,62357.0,62356.0,1.52206473]
[1728667461126,1e-06,62357.0,62356.0,1.76267685]
[1728667461342,0.000818,62371.0,62370.0,0.160333]
[1728667461563,0.000818,62371.0,62370.0,0.557373]
[1728667461787,0.000818,62371.0,62370.0,0.56832667]
[1728667462850,0.175218,62371.0,62370.0,0.33251068]
[1728667463274,0.175218,62371.0,62370.0,0.52022637]
[1728667464599,0.175218,62371.0,62370.0,0.52622637]
[1728667464852,0.175218,62371.0,62370.0,0.53122637]
[1728667465062,0.177218,62371.0,62370.0,0.53122637]
[1728667465264,0.19216855,62371.0,62370.0,0.52622637]
[1728667465501,0.19216855,62371.0,62370.0,0.33851068]
[1728667465703,0.19216855,62371.0,62370.0,0.33451068]
[1728667465952,0.19316855,62371.0,62370.0,0.33451068]
[1728667466188,0.19316855,62371.0,62370.0,0.17217768]
[1728667466428,0.19016855,62371.0,62370.0,0.33251068]
[1728667466656,0.19016855,62371.0,62370.0,0.47445658]
[1728667466657,0.175218,62371.0,62370.0,0.47445658]
[1728667466939,0.19017857,62371.0,62370.0,0.47445658]
[1728667467447,0.19018446,62371.0,62370.0,0.47445658]
[1728667467682,0.175218,62371.0,62370.0,0.33351068]
[1728667467922,0.19018423,62371.0,62370.0,0.33351068]
[1728667468391,0.19118423,62371.0,62370.0,0.33351068]
[1728667468880,0.19018423,62371.0,62370.0,0.33351068]
[1728667469121,0.19018423,62371.0,62370.0,0.47383053]
[1728667469378,0.19018423,62371.0,62370.0,0.47483053]
[1728667469626,0.19018423,62371.0,62370.0,0.47383053]
[1728667469878,0.19018423,62371.0,62370.0,0.47283053]
[1728667470122,0.19218423,62371.0,62370.0,0.47283053]
[1728667470899,0.19219722,62371.0,62370.0,0.47283053]
[1728667472149,0.177218,62371.0,62370.0,0.47283053]
[1728667472378,0.19219752,62371.0,62370.0,0.33251068]
[1728667472847,0.19119752,62371.0,62370.0,0.33251068]
[1728667473086,0.19019752,62371.0,62370.0,0.33251068]
[1728667473318,0.23015365,62371.0,62370.0,0.33251068]
[1728667473560,0.23015365,62371.0,62370.0,0.47344727]
[1728667474034,0.23015365,62371.0,62370.0,0.47944727]
[1728667474303,0.176218,62371.0,62370.0,0.47944727]
[1728667474567,0.23017873,62371.0,62370.0,0.47944727]
[1728667475079,0.22917873,62371.0,62370.0,0.47944727]
[1728667475311,0.15267873,62371.0,62370.0,0.48544727]
[1728667475567,0.10870709,62371.0,62370.0,0.48544727]
[1728667476555,0.01498909,62371.0,62370.0,0.48544727]
[1728667476804,0.0785,62381.0,62380.0,0.160307]
[1728667477044,0.13248068,62381.0,62380.0,0.32153101]
[1728667477282,0.1564719,62381.0,62380.0,0.33238316]
[1728667478010,0.1604657,62381.0,62380.0,0.33238316]
[1728667478271,0.1624657,62381.0,62380.0,0.33238316]
[1728667478516,0.2523657,62381.0,62380.0,0.33238316]
[1728667479773,0.2563657,62381.0,62380.0,0.33238316]
[1728667480920,0.23237625,62381.0,62380.0,0.33238316]
[1728667481144,0.1784,62381.0,62380.0,0.33238316]
[1728667481376,0.58240138,62381.0,62380.0,0.01085215]
[1728667481590,0.23438069,62381.0,62373.0,0.32065]
[1728667481795,0.14588069,62380.0,62379.0,0.24061212]
[1728667482003,0.14588069,62380.0,62374.0,0.32154601]
[1728667482004,0.0919,62379.0,62375.0,0.480956]
[1728667482230,0.0919,62379.0,62375.0,0.160318]
[1728667482231,0.05398069,62378.0,62375.0,0.160318]
[1728667482438,0.05398069,62378.0,62374.0,0.16122401]
[1728667482439,0.13248069,62377.0,62376.0,0.160318]
[1728667482872,0.13248069,62377.0,62375.0,0.16032]
[1728667483087,0.14588069,62376.0,62374.0,0.32154501]
[1728667483304,0.05398069,62375.0,62374.0,0.32154501]
[1728667484224,0.05398069,62375.0,62374.0,0.16122401]
[1728667484470,0.05398069,62375.0,62374.0,0.32254701]
[1728667484696,0.0919,62376.0,62375.0,0.16032]
[1728667484913,0.13090536,62376.0,62375.0,0.16032]
[1728667485123,0.14590748,62376.0,62374.0,0.16322401]
[1728667485338,0.05400748,62375.0,62374.0,0.32354701]
[1728667485550,0.05400748,62375.0,62374.0,0.32254701]
[1728667485759,0.05400748,62375.0,62374.0,0.32154701]
[1728667485968,0.05400748,62375.0,62374.0,0.32354701]
[1728667486385,0.05400748,62375.0,62374.0,0.16122401]
[1728667486621,0.05400748,62375.0,62374.0,0.32154701]
[1728667486829,0.05400748,62375.0,62374.0,0.32254701]
[1728667487045,0.05400748,62375.0,62374.0,0.32154701]
[1728667487262,0.05400748,62375.0,62374.0,0.32354701]
[1728667487936,0.05400748,62375.0,62374.0,0.16322401]
[1728667488354,0.05401829,62375.0,62374.0,0.3344528]
[1728667489007,0.05401829,62375.0,62374.0,0.1741298]
[1728667489211,0.05401829,62375.0,62374.0,0.1751298]
[1728667489669,0.05401829,62375.0,62374.0,0.3354528]
[1728667490406,0.05401829,62375.0,62374.0,0.1751298]
[1728667491674,0.05601829,62375.0,62374.0,0.1751298]
[1728667491893,0.05483729,62375.0,62374.0,0.3354528]
[1728667492334,0.05483729,62375.0,62374.0,0.1751298]
[1728667492553,0.05483729,62375.0,62374.0,0.3354528]
[1728667494560,0.05483729,62375.0,62374.0,0.46272065]
[1728667494802,0.000819,62375.0,62374.0,0.62723318]
[1728667495088,0.01582908,62375.0,62374.0,0.62723318]
[1728667495311,0.01582908,62375.0,62374.0,0.82836287]
[1728667495312,0.000819,62375.0,62374.0,0.82836287]
[1728667495551,0.000819,62375.0,62374.0,0.62739052]
[1728667495783,0.01582845,62375.0,62374.0,0.62639052]
[1728667496002,0.01882845,62375.0,62374.0,0.62439052]
[1728667496728,0.01882845,62375.0,62374.0,0.62439885]
[1728667496945,0.02282845,62375.0,62374.0,0.62439885]
[1728667498945,0.007819,62375.0,62374.0,0.57638554]
[1728667499137,0.007819,62375.0,62374.0,0.75361603]
[1728667499616,0.007819,62375.0,62374.0,0.84964522]
[1728667499839,0.007819,62375.0,62374.0,0.84964531]
[1728667500098,0.007819,62375.0,62374.0,0.64840885]
[1728667500346,0.007819,62375.0,62374.0,0.82565818]
[1728667500795,0.007819,62375.0,62374.0,0.82570474]
[1728667501497,0.007819,62375.0,62374.0,0.75366669]
[1728667502001,0.007819,62375.0,62374.0,0.84971743]
[1728667502469,0.007819,62375.0,62374.0,0.96638232]
[1728667503273,0.007819,62375.0,62374.0,0.87033158]
[1728667503511,0.007819,62375.0,62374.0,0.990395]
[1728667503749,0.007819,62375.0,62374.0,1.02038681]
[1728667504420,0.007819,62375.0,62374.0,1.16446292]
[1728667504638,0.000819,62375.0,62374.0,1.38322681]
[1728667504863,0.000819,62375.0,62374.0,1.60091951]
[1728667505086,0.000819,62375.0,62374.0,1.39822681]
[1728667505312,1e-06,62375.0,62374.0,1.7075917]
[1728667505538,0.000819,62382.0,62381.0,0.343405]
[1728667505762,0.000819,62382.0,62381.0,1.02313567]
[1728667505981,0.000819,62382.0,62381.0,1.03424818]
[1728667506207,0.000819,62382.0,62381.0,1.03849194]
[1728667506445,0.000819,62382.0,62381.0,0.76142806]
[1728667506677,0.000819,62382.0,62381.0,0.83227039]
[1728667508054,0.000819,62382.0,62381.0,0.83827039]
[1728667508278,0.000819,62382.0,62381.0,0.84327039]
[1728667508496,0.000819,62382.0,62381.0,0.96297039]
[1728667509640,0.000819,62382.0,62381.0,1.83657951]
[1728667509851,0.000819,62387.0,62386.0,0.44779922]
[1728667510071,0.000819,62387.0,62386.0,0.94767409]
[1728667510302,0.000819,62387.0,62386.0,0.95872317]
[1728667510804,0.000819,62387.0,62386.0,0.78144202]
[1728667511025,0.000819,62387.0,62386.0,1.15511323]
[1728667511246,0.000819,62387.0,62386.0,1.2828316]
[1728667511670,0.000819,62387.0,62386.0,1.3058316]
[1728667511876,0.000819,62387.0,62386.0,1.31271612]
[1728667512090,0.000819,62387.0,62386.0,1.31271622]
[1728667512749,0.000819,62387.0,62386.0,1.32304524]
[1728667512968,0.0001,62392.0,62391.0,0.283279]
[1728667513187,0.0001,62392.0,62391.0,1.02871916]
[1728667513433,0.0001,62392.0,62391.0,1.15544269]
[1728667513648,0.0001,62392.0,62391.0,1.04813547]
[1728667513863,0.0001,62392.0,62391.0,1.16697695]
[1728667514077,0.0001,62392.0,62391.0,1.06285864]
[1728667514292,0.0001,62392.0,62391.0,1.04091952]
[1728667514498,0.0001,62392.0,62391.0,0.86619104]
[1728667514711,0.0001,62392.0,62391.0,0.86819104]
[1728667515140,0.0001,62392.0,62391.0,0.79643493]
[1728667515589,0.00092,62392.0,62391.0,0.79643493]
[1728667516457,0.00092,62392.0,62391.0,0.77343493]
[1728667517160,0.00092,62392.0,62391.0,0.78059239]
[1728667522570,0.00092,62392.0,62391.0,0.80359239]
[1728667522794,0.00092,62392.0,62391.0,0.85140821]
[1728667522962,0.00092,62392.0,62391.0,0.80359239]
[1728667523750,0.00092,62392.0,62391.0,0.85139191]
[1728667524204,0.00092,62392.0,62391.0,0.85137937]
[1728667524432,0.00092,62392.0,62391.0,0.80359239]
[1728667524666,0.00092,62392.0,62391.0,0.85137937]
[1728667525546,0.00092,62392.0,62391.0,0.84737937]
[1728667525773,0.00092,62392.0,62391.0,0.85237937]
[1728667526060,0.00092,62392.0,62391.0,0.85837937]
[1728667526269,0.00092,62392.0,62391.0,0.79959239]
[1728667526485,0.00092,62392.0,62391.0,1.00409961]
[1728667526695,0.00092,62392.0,62391.0,0.81659239]
[1728667526911,0.00092,62392.0,62391.0,0.79359239]
[1728667529705,0.00092,62392.0,62391.0,0.45665661]
[1728667529949,0.00092,62392.0,62391.0,0.44865661]
[1728667530184,0.00092,62392.0,62391.0,0.45665661]
[1728667531664,0.00092,62392.0,62391.0,0.44765661]
[1728667531890,0.00092,62392.0,62391.0,0.43965661]
[1728667532117,0.00092,62392.0,62391.0,0.61502632]
[1728667532374,0.00092,62392.0,62391.0,0.60602632]
[1728667532886,0.00092,62392.0,62391.0,0.61202632]
[1728667533111,0.00092,62392.0,62391.0,0.60102632]
[1728667533363,0.00092,62392.0,62391.0,0.61202632]
[1728667533931,0.00092,62392.0,62391.0,0.61302632]
[1728667534643,0.00092,62392.0,62391.0,0.60802632]
[1728667535162,0.00092,62392.0,62391.0,0.60102632]
[1728667535629,0.00092,62392.0,62391.0,0.50102632]
[1728667535855,0.00192,62392.0,62391.0,0.50102632]
[1728667538545,0.00192,62392.0,62391.0,0.33965661]
[1728667539902,0.01692171,62392.0,62391.0,0.33965661]
[1728667540144,0.01692207,62392.0,62391.0,0.33965661]
[1728667540428,0.00192,62392.0,62391.0,0.33965661]
[1728667541136,0.00192,62392.0,62391.0,0.58026873]
[1728667541377,0.00192,62392.0,62391.0,0.50102632]
[1728667542642,0.00092,62392.0,62391.0,0.50302632]
[1728667543673,0.09482,62392.0,62391.0,0.50302632]
[1728667543937,0.17172,62392.0,62391.0,0.34265661]
[1728667544447,0.17172,62392.0,62391.0,0.34165661]
[1728667544715,0.17172,62392.0,62391.0,0.34265661]
[1728667544943,0.17172,62392.0,62391.0,0.50402632]
[1728667545365,0.18672141,62392.0,62391.0,0.50402632]
[1728667547330,0.17172,62392.0,62391.0,0.50402632]
[1728667548029,0.18672652,62392.0,62391.0,0.50402632]
[1728667548213,0.17172,62392.0,62391.0,0.50402632]
[1728667549363,0.17172,62392.0,62391.0,0.74463844]
[1728667549594,0.09482,62392.0,62391.0,0.74463844]
[1728667549778,0.09482,62392.0,62391.0,0.98942265]
[1728667550082,0.09482,62392.0,62391.0,0.74881053]
[1728667550294,0.09482,62392.0,62391.0,0.67681875]
[1728667550513,0.09482,62392.0,62391.0,0.8653429]
[1728667550945,0.09482,62392.0,62391.0,0.79334121]
[1728667551168,0.00092,62392.0,62391.0,0.79334121]
[1728667555160,0.00092,62392.0,62391.0,0.7934765]
[1728667556594,0.22887917,62392.0,62391.0,0.33549915]
[1728667557227,0.22887917,62392.0,62391.0,0.17522015]
[1728667557649,0.23087917,62392.0,62391.0,0.17522015]
[1728667558083,0.23087917,62392.0,62391.0,0.01299614]
[1728667558312,0.23087917,62392.0,62391.0,0.01099614]
[1728667558719,0.002,62390.0,62389.0,0.160284]
[1728667558915,0.002,62389.0,62388.0,0.160286]
[1728667559151,0.002,62388.0,62387.0,0.001638]
[1728667559370,0.23095917,62388.0,62387.0,0.001638]
[1728667560306,0.23195917,62388.0,62387.0,0.001638]
[1728667560739,0.23095917,62388.0,62387.0,0.001638]
[1728667561147,0.23095917,62388.0,62387.0,0.004638]
[1728667561493,0.23095917,62388.0,62387.0,0.164927]
[1728667561700,0.23095917,62388.0,62387.0,0.007638]
[1728667562341,0.23095917,62388.0,62387.0,0.001638]
[1728667562548,0.23095917,62388.0,62387.0,0.003638]
[1728667562756,0.23095917,62388.0,62387.0,0.006638]
[1728667562971,0.23095917,62388.0,62387.0,0.004638]
[1728667563189,0.23095917,62388.0,62387.0,0.01249363]
[1728667563878,0.23095917,62388.0,62387.0,0.01349363]
[1728667564524,0.23095917,62388.0,62387.0,0.01049363]
[1728667564767,0.23095917,62388.0,62387.0,0.01149363]
[1728667564993,0.23095917,62388.0,62387.0,0.01049363]
[1728667565485,0.23195917,62388.0,62387.0,0.00949363]
[1728667565694,0.23295917,62388.0,62387.0,0.00949363]
[1728667565907,0.23495917,62388.0,62387.0,0.00949363]
[1728667566116,0.23395917,62388.0,62387.0,0.00949363]
[1728667566328,0.23095917,62388.0,62387.0,0.00949363]
[1728667566540,0.23195917,62388.0,62387.0,0.00949363]
[1728667566973,0.23395917,62388.0,62387.0,0.00949363]
[1728667567861,0.39424617,62388.0,62387.0,0.00949363]
[1728667568318,0.79424617,62388.0,62387.0,0.001638]
[1728667568539,0.79324617,62388.0,62387.0,0.001638]
[1728667568770,0.79424617,62388.0,62387.0,0.001638]
[1728667568989,0.79424617,62388.0,62387.0,0.00955746]
[1728667569222,0.79324617,62388.0,62387.0,0.001638]
[1728667569670,0.79224617,62388.0,62387.0,0.001638]
[1728667569939,0.79424617,62388.0,62387.0,0.001638]
[1728667571650,0.79424617,62388.0,62387.0,0.00955746]
[1728667571885,0.79424617,62388.0,62387.0,0.001638]
[1728667572096,0.79424617,62388.0,62387.0,0.00955746]
[1728667572314,0.79424617,62388.0,62387.0,0.001638]
[1728667572953,0.79424617,62388.0,62387.0,0.00955746]
[1728667573169,0.63395917,62388.0,62387.0,0.001638]
[1728667573384,0.63395917,62388.0,62387.0,0.00955746]
[1728667573594,0.79424617,62388.0,62387.0,0.001638]
[1728667573851,0.79424617,62388.0,62387.0,0.00955746]
[1728667574068,0.79424617,62388.0,62387.0,0.001638]
[1728667574286,0.79424617,62388.0,62387.0,0.00955746]
[1728667574515,0.79424617,62388.0,62387.0,0.001638]
[1728667574753,0.79424617,62388.0,62387.0,0.00956508]
[1728667575218,0.79424617,62388.0,62387.0,0.001638]
[1728667575223,0.7791134,62388.0,62387.0,0.001638]
[1728667575449,0.79408509,62388.0,62387.0,0.00956508]
[1728667575693,0.79408389,62388.0,62387.0,0.001638]
[1728667576173,0.63379689,62388.0,62387.0,0.00956508]
[1728667576403,0.23379689,62388.0,62387.0,0.001638]
[1728667576622,0.23379689,62388.0,62387.0,0.00957365]
[1728667576767,0.23379689,62388.0,62387.0,0.001638]
[1728667576984,0.23379689,62388.0,62387.0,0.00957365]
[1728667577185,0.23379689,62388.0,62387.0,0.001638]
[1728667577386,0.39408389,62388.0,62387.0,0.00957365]
[1728667577593,0.39408389,62388.0,62387.0,0.001638]
[1728667577952,0.58169734,62388.0,62387.0,0.001638]
[1728667578392,0.98169734,62388.0,62387.0,0.001638]
[1728667578611,0.96672565,62388.0,62387.0,0.001638]